fUST/lending_fUST_20250926
["ID","MTS","AMOUNT","RATE_DAILY","PERIOD"]
[387780194,1758850313609,193.0,0.00024,120]
[387780197,1758850525045,522.1,0.0002876,120]
[387780335,1758851432186,-918.02637208,0.00019352,2]
[387780342,1758851432717,-489.70994487,0.00019352,2]
[387780343,1758851432726,-904.54504951,0.000199,2]
[387780344,1758851432736,-904.54504947,0.00020972,2]
[387780345,1758851432746,-904.54504947,0.00022044,2]
[387780346,1758851432756,-233.66602051,0.00022128,2]
[387780347,1758851432765,-904.54504947,0.00023116,2]
[387780348,1758851432775,-904.54504947,0.00024187,2]
[387780349,1758851432784,-417.15472785,0.00025,10]
[387780350,1758851432794,-271.5388169,0.0002503,30]
[387780351,1758851432803,-412.899,0.00025195,2]
[387780352,1758851432814,-246.38068374,0.00025259,2]
[387780353,1758851432824,-904.54504947,0.00025259,3]
[387780354,1758851432835,-12500.0,0.00025352,7]
[387780355,1758851432844,-353.68562813,0.0002536,2]
[387780356,1758851432853,-332.04952481,0.0002536,2]
[387780357,1758851432863,-500.0,0.0002536,2]
[387780358,1758851432872,-520.66831207,0.0002536,2]
[387780359,1758851432882,-6334.56750997,0.00025361,7]
[387780360,1758851432893,-1796.78135078,0.00025361,7]
[387780361,1758851432904,-4368.65113925,0.00025361,7]
[387780362,1758851432914,-12500.0,0.0002537,7]
[387780363,1758851432925,-904.54504947,0.00026331,5]
[387780364,1758851432936,-904.54504947,0.00027403,7]
[387780365,1758851432945,-181.76594318,0.00027973,2]
[387780366,1758851432955,-934.1519837,0.00027979,2]
[387780367,1758851432964,-678.22,0.0002798,10]
[387780368,1758851432975,-994.14,0.0002798,10]
[387780369,1758851432984,-828.45,0.0002798,10]
[387780370,1758851432995,-500.0,0.00027989,2]
[387780371,1758851433005,-152747.86299,0.0002799,2]
[387780372,1758851433015,-235.709,0.00027999,18]
[387780373,1758851433024,-555.30211581,0.00028,2]
[387780374,1758851433034,-233.66602051,0.00028,3]
[387780375,1758851433044,-233.66602051,0.00028,3]
[387780376,1758851433054,-151.0,0.00028,7]
[387780377,1758851433065,-151.0,0.00028,7]
[387780378,1758851433075,-512.239911,0.00028,7]
[387780379,1758851433086,-512.239911,0.00028,7]
[387780380,1758851433096,-512.239911,0.00028,7]
[387780381,1758851433106,-512.239911,0.00028,7]
[387780382,1758851433116,-294.895004,0.00028,7]
[387780383,1758851433127,-193072.3885573,0.00028,4]
[387780384,1758851433137,-500.0,0.00028073,5]
[387780385,1758851433147,-510.71356471,0.00028073,5]
[387780386,1758851433157,-505.97679255,0.00028073,5]
[387780387,1758851433166,-410.0,0.00028195,2]
[387780388,1758851433177,-199.0,0.00028219,14]
[387780389,1758851433187,-904.54504947,0.00028475,9]
[387780390,1758851433196,-1000.0,0.00028621,5]
[387780391,1758851433206,-199.0,0.00028904,15]
[387780392,1758851433216,-181.76594316,0.00028983,2]
[387780393,1758851433226,-233.66602051,0.00029,10]
[387780394,1758851433235,-233.66602051,0.00029,10]
[387780395,1758851433245,-101374.63805722,0.00029,2]
[387780396,1758851433255,-160.0,0.00029024,2]
[387780397,1758851433265,-1000.0,0.0002909,5]
[387780398,1758851433274,-508.9437784,0.0002909,5]
[387780399,1758851433284,-504.77819109,0.0002909,5]
[387780400,1758851433293,-514.42337552,0.0002909,5]
[387780401,1758851433303,-511.61449538,0.0002909,5]
[387780402,1758851433314,-1582.67825345,0.00029168,5]
[387780403,1758851433424,-1013.52,0.000293,60]
[387780404,1758851433437,-151.0,0.0002942,7]
[387780405,1758851433448,-512.239911,0.0002942,7]
[387780406,1758851433459,-512.239911,0.0002942,7]
[387780407,1758851433470,-512.239911,0.0002942,7]
[387780408,1758851433481,-512.239911,0.0002942,7]
[387780409,1758851433491,-38186.9657476,0.0002942,2]
[387780410,1758851433501,-152.96839139,0.00029422,2]
[387780411,1758851433511,-354.93202319,0.00029422,2]
[387780412,1758851433522,-519.69759873,0.00029422,2]
[387780413,1758851433532,-163.170801,0.0002943,7]
[387780414,1758851433542,-163.658943,0.0002943,7]
[387780415,1758851433552,-171.942865,0.0002943,7]
[387780416,1758851433565,-186.620748,0.0002943,7]
[387780417,1758851433575,-76373.9314952,0.0002943,2]
[387780418,1758851433586,-160.01515,0.0002943,7]
[387780419,1758851433595,-151.0,0.0002943,7]
[387780420,1758851433607,-151.0,0.0002943,7]
[387780421,1758851433617,-512.239911,0.0002943,7]
[387780422,1758851433627,-512.239911,0.0002943,7]
[387780423,1758851433638,-512.239911,0.0002943,7]
[387780424,1758851433648,-512.239911,0.0002943,7]
[387780425,1758851433658,-179874.52383469,0.0002944,2]
[387780426,1758851433668,-185.001351,0.0002944,7]
[387780427,1758851433678,-152.06376748,0.0002944,2]
[387780428,1758851433689,-152.00964174,0.0002944,2]
[387780429,1758851433699,-245.39878186,0.0002944,2]
[387780430,1758851433710,-151.93549936,0.0002944,2]
[387780431,1758851433720,-151.5785623,0.0002944,2]
[387780432,1758851433730,-151.55003278,0.0002944,2]
[387780433,1758851433740,-151.0,0.0002944,7]
[387780434,1758851433750,-151.0,0.0002944,7]
[387780435,1758851433761,-512.239911,0.0002944,7]
[387780436,1758851433771,-512.239911,0.0002944,7]
[387780437,1758851433782,-512.239911,0.0002944,7]
[387780438,1758851433792,-512.239911,0.0002944,7]
[387780439,1758851433802,-184.18797086,0.0002944,2]
[387780440,1758851433812,-151.42941946,0.0002944,2]
[387780441,1758851433822,-197.04139678,0.0002944,2]
[387780442,1758851433832,-176.14700046,0.0002947,20]
[387780443,1758851433842,-506.59674869,0.00029473,5]
[387780444,1758851433852,-329.04586328,0.00029473,5]
[387780445,1758851433862,-500.0,0.00029473,5]
[387780446,1758851433872,-419.42,0.000295,2]
[387780447,1758851433882,-904.54504947,0.00029547,12]
[387780448,1758851433891,-199.0,0.00029589,16]
[387780449,1758851433902,-1876.9,0.00029654,2]
[387780450,1758851433912,-1200.395378,0.000299,5]
[387780451,1758851433922,-169.57516955,0.00029993,2]
[387780452,1758851433935,-181.76594316,0.00029993,2]
[387780453,1758851433946,-7088.25953627,0.00029993,2]
[387780454,1758851433956,-250.0,0.0003,120]
[387780455,1758851433967,-287.553,0.0003,2]
[387780456,1758851433978,-157.96034536,0.0003,2]
[387780457,1758851433988,-1502.945942,0.0003,2]
[387780458,1758851433997,-1000.0,0.00030021,5]
[387780459,1758851434009,-150.54343057,0.00030073,5]
[387780460,1758851434019,-1011.39,0.00030093,60]
[387780461,1758851434028,-233.66602051,0.00030093,30]
[387780462,1758851434038,-309632.44824301,0.00030093,20]
[387780463,1758851434173,-650.57089511,0.00030093,20]
[387780464,1758851434186,-1633.37,0.00030093,20]
[387780706,1758851446424,-251.20184585,0.00027093,2]
[387780707,1758851446440,-500.0,0.00027989,2]
[387780708,1758851446452,-402.48584512,0.00027989,2]
[387780709,1758851446466,-500.0,0.00027989,2]
[387780710,1758851446479,-690.37,0.00030083,10]
[387780711,1758851446489,-2917.23305205,0.00030093,20]
[387780749,1758852117885,155.5149658,0.00030093,120]
[387780889,1758852612945,25884.0,0.00019,2]
[387780932,1758852632436,-887.0,0.00019299,2]
[387780934,1758852632446,-1828.69319865,0.00019352,2]
[387780936,1758852632456,-699.23399172,0.000199,2]
[387780938,1758852632464,-699.23399158,0.00020972,2]
[387780940,1758852632474,-699.23399158,0.00022044,2]
[387780942,1758852632483,-699.23399158,0.00023116,2]
[387780944,1758852632493,-699.23399158,0.00024187,2]
[387780946,1758852632503,-410.0,0.00025251,2]
[387780948,1758852632512,-699.23399158,0.00025259,3]
[387780950,1758852632522,-300.0,0.00025366,2]
[387780952,1758852632531,-10701.92443118,0.00025367,2]
[387780954,1758852632540,-2273.83245456,0.0002537,7]
[387781027,1758852638364,-233.71402077,0.00022172,2]
[387781028,1758852638375,-3173.08190714,0.0002537,7]
[387781029,1758852638385,-699.23399158,0.00026331,5]
[387781030,1758852638395,-500.0,0.00026834,7]
[387781031,1758852638404,-162.63,0.00027354,7]
[387781032,1758852638414,-223.885,0.00027397,16]
[387781033,1758852638423,-699.23399158,0.00027403,7]
[387781034,1758852638433,-162.63,0.00027454,15]
[387781035,1758852638442,-162.63048501,0.00027554,15]
[387781036,1758852638452,-199.0,0.00028219,14]
[387781037,1758852638461,-699.23399158,0.00028475,9]
[387781038,1758852638470,-199.0,0.00028904,15]
[387781039,1758852638480,-1080.0,0.00029,2]
[387781040,1758852638489,-411.09279209,0.000291,2]
[387781041,1758852638499,-285.279625,0.000294,120]
[387781042,1758852638508,-699.23399158,0.00029547,12]
[387781043,1758852638517,-199.0,0.00029589,16]
[387781044,1758852638528,-1019.54312385,0.00029844,2]
[387781045,1758852638538,-1986.37334,0.00029845,2]
[387781046,1758852638547,-189.99297313,0.00029994,2]
[387781047,1758852638556,-6379.43358267,0.00029994,2]
[387781048,1758852638565,-500.0,0.00029999,2]
[387781049,1758852638574,-500.0,0.00029999,2]
[387781050,1758852638583,-331.74009159,0.00029999,2]
[387781051,1758852638593,-215.7885,0.0003,2]
[387781052,1758852638602,-768.0,0.0003,7]
[387781053,1758852638611,-500.78929278,0.00030073,5]
[387781054,1758852638621,-575.31,0.00030084,10]
[387781055,1758852638631,-479.42,0.00030084,10]
[387781056,1758852638640,-399.52,0.00030084,10]
[387781057,1758852638649,-332.93,0.00030084,10]
[387781058,1758852638658,-203.04646152,0.00030087,10]
[387781059,1758852638668,-5000.0,0.00030093,29]
[387781060,1758852638678,-5000.0,0.00030093,26]
[387781061,1758852638687,-5000.0,0.00030093,23]
[387781062,1758852638696,-5000.0,0.00030093,29]
[387781063,1758852638705,-265.7198308,0.00030093,2]
[387781064,1758852638714,-152.903061,0.00030093,7]
[387781065,1758852638724,-154.039061,0.00030093,7]
[387781066,1758852638733,-151.0,0.00030093,7]
[387781067,1758852638743,-153.757237,0.00030093,7]
[387781068,1758852638752,-151.0,0.00030093,7]
[387781069,1758852638761,-151.0,0.00030093,7]
[387781070,1758852638771,-152.907224,0.00030093,7]
[387781071,1758852638780,-152.92507,0.00030093,7]
[387781072,1758852638790,-151.91139348,0.00030093,2]
[387781073,1758852638799,-151.0,0.00030093,2]
[387781074,1758852638810,-151.0,0.00030093,2]
[387781075,1758852638820,-151.0,0.00030093,2]
[387781076,1758852638829,-151.0,0.00030093,2]
[387781077,1758852638839,-500.0,0.00030093,2]
[387781078,1758852638848,-199.15473889,0.00030093,2]
[387781079,1758852638857,-500.0,0.00030093,2]
[387781080,1758852638867,-151.39075792,0.00030093,2]
[387781081,1758852638876,-151.0,0.00030093,2]
[387781082,1758852638886,-151.0,0.00030093,2]
[387781083,1758852638895,-151.77394356,0.00030093,2]
[387781084,1758852638905,-500.0,0.00030093,2]
[387781086,1758852638914,-151.26222789,0.00030093,2]
[387781088,1758852638924,-230.54795417,0.00030093,2]
[387781090,1758852638934,-276.54991272,0.00030093,2]
[387781091,1758852638943,-151.63951877,0.00030093,2]
[387781092,1758852638953,-226.2897693,0.00030093,2]
[387781094,1758852638962,-167.44639021,0.00030093,2]
[387781096,1758852638972,-151.0,0.00030093,2]
[387781098,1758852638981,-151.0,0.00030093,2]
[387781099,1758852638991,-151.53989058,0.00030093,2]
[387781101,1758852639000,-254.88874259,0.00030093,2]
[387781103,1758852639009,-500.0,0.00030093,2]
[387781104,1758852639019,-500.0,0.00030093,2]
[387781105,1758852639028,-151.0,0.00030093,2]
[387781106,1758852639038,-643.51288255,0.00030094,2]
[387781107,1758852639048,-151.0,0.00030094,7]
[387781108,1758852639057,-152.036151,0.00030094,7]
[387781109,1758852639067,-151.244644,0.00030094,7]
[387781110,1758852639076,-151.937867,0.00030094,7]
[387781111,1758852639085,-164.175705,0.00030094,7]
[387781112,1758852639094,-152.450077,0.00030094,7]
[387781113,1758852639104,-151.0,0.00030094,7]
[387781114,1758852639113,-152.795335,0.00030094,7]
[387781115,1758852639123,-151.0,0.00030094,7]
[387781116,1758852639132,-152.677233,0.00030094,7]
[387781117,1758852639141,-152.67446,0.00030094,7]
[387781118,1758852639151,-151.0,0.00030094,7]
[387781119,1758852639160,-257.882334,0.00030094,7]
[387781120,1758852639169,-151.338761,0.00030094,7]
[387781121,1758852639179,-151.0,0.00030094,7]
[387781122,1758852639188,-151.418277,0.00030094,7]
[387781123,1758852639197,-153.245612,0.00030094,7]
[387781124,1758852639207,-151.0,0.00030094,7]
[387781125,1758852639215,-151.0,0.00030094,7]
[387781126,1758852639224,-151.0,0.00030094,7]
[387781127,1758852639234,-151.0,0.00030094,7]
[387781128,1758852639244,-152.720292,0.00030094,7]
[387781129,1758852639257,-10869.9737737,0.00030094,20]
[387781157,1758852640303,-533.51291209,0.00027396,2]
[387781158,1758852640312,-56690.06913048,0.00030094,20]
[387781159,1758852640354,-917.93377293,0.00030094,20]
[387781173,1758852643683,-960.0,0.00030094,20]
[387781174,1758852643788,-477.74879998,0.00030094,20]
[387781205,1758852646522,-151.0,0.00030094,7]
[387781206,1758852646531,-1707.78251825,0.00030094,20]
[387781207,1758852646542,-428.45840391,0.00030094,20]
[387781241,1758853722423,157.81639672,0.00030093,60]
[387781357,1758853840655,-589.30784977,0.000199,2]
[387781359,1758853840665,-589.30784954,0.00020972,2]
[387781361,1758853840676,-589.30784954,0.00022044,2]
[387781363,1758853840686,-233.71402077,0.00022189,2]
[387781365,1758853840695,-160.0,0.00022189,2]
[387781367,1758853840704,-589.30784954,0.00023116,2]
[387781369,1758853840714,-589.30784954,0.00024187,2]
[387781371,1758853840723,-300.0,0.00025159,2]
[387781373,1758853840732,-11920.53978905,0.0002516,2]
[387781544,1758853843927,-316.47305377,0.0002516,2]
[387781545,1758853843938,-456.21478396,0.00025259,3]
[387781552,1758854074377,554.5,0.00028767,120]
[387781553,1758854185049,1734.899999,0.00025,120]
[387781554,1758854408501,-549.8031136,0.000199,2]
[387781555,1758854418316,-549.80311349,0.00020972,2]
[387781556,1758854428374,-549.80311349,0.00022044,2]
[387781557,1758854438387,-549.80311349,0.00023116,2]
[387781558,1758854448363,-549.80311349,0.00024187,2]
[387781559,1758854460260,1315.12866701,0.00023,2]
[387781566,1758854572972,458.21538332,0.000199,2]
[387781567,1758854573050,458.21538325,0.00020972,2]
[387781568,1758854573581,458.21538325,0.00022044,2]
[387781569,1758854573655,458.21538325,0.00023116,2]
[387781570,1758854573736,458.21538325,0.00024187,2]
[387781707,1758854913144,170.2463339,0.00028767,120]
[387781748,1758855032770,-458.21538325,0.00025259,3]
[387781750,1758855032779,-319.93337776,0.00026,2]
[387781752,1758855032790,-254.46832772,0.00026331,5]
[387781756,1758855032826,-203.74705553,0.00026331,5]
[387781758,1758855032835,-410.0,0.00026816,2]
[387781760,1758855032845,-158.76952852,0.00027225,2]
[387781763,1758855032879,-74.94449225,0.00027225,2]
[387781764,1758855032888,-160.0,0.00027225,2]
[387781765,1758855032898,-160.0,0.0002729,2]
[387781766,1758855032911,-458.21538325,0.00027403,7]
[387781767,1758855032921,-506.71884885,0.000275,2]
[387782175,1758855044175,-7233.80382836,0.000275,2]
[387782177,1758855044185,-2848.3251575,0.0002785,60]
[387782179,1758855044194,-199.0,0.00028219,14]
[387782181,1758855044203,-458.21538325,0.00028475,9]
[387782183,1758855044213,-199.0,0.00028904,15]
[387782185,1758855044223,-2607.97,0.00029,3]
[387782187,1758855044232,-274.06186139,0.00029191,2]
[387782189,1758855044241,-164.423666,0.00029261,2]
[387782191,1758855044251,-458.21538325,0.00029547,12]
[387782193,1758855044262,-199.0,0.00029589,16]
[387782195,1758855044271,-967.74011878,0.00029863,30]
[387782197,1758855044280,-5741.49022443,0.00029993,2]
[387782199,1758855044290,-321.75644128,0.00029999,2]
[387782201,1758855044299,-500.0,0.00029999,2]
[387782203,1758855044313,-432.21806411,0.00029999,2]
[387782205,1758855044324,-251.43,0.00029999,24]
[387782207,1758855044335,-165.0,0.0003,20]
[387782209,1758855044344,-165.0,0.0003,20]
[387782211,1758855044353,-165.13788383,0.0003,30]
[387782213,1758855044363,-25401.56814191,0.0003,14]
[387782373,1758855046943,-2196.02330469,0.0003,14]
[387782375,1758855047046,-284.19819988,0.0003,14]
[387782378,1758855219537,417.15472785,0.00025205,2]
[387782379,1758855337781,2000.0,0.00028767,120]
[387782380,1758855360091,3010.0,0.00028767,120]
[387782381,1758855702001,201.144,0.00025205,9]
[387782382,1758855820491,358.2065158,0.000199,2]
[387782383,1758855820553,358.2065156,0.00023116,2]
[387782384,1758855820764,358.2065156,0.00024187,2]
[387782385,1758855821006,358.2065156,0.00022044,2]
[387782386,1758855821265,358.2065156,0.00020972,2]
[387782405,1758855985920,381.04291715,0.000199,2]
[387782406,1758855985989,381.04291699,0.00024187,2]
[387782407,1758855986793,381.04291699,0.00023116,2]
[387782408,1758855986944,381.04291699,0.00020972,2]
[387782411,1758856152150,330.23719486,0.000199,2]
[387782412,1758856152609,330.23719472,0.00024187,2]
[387782413,1758856152718,330.23719472,0.00023116,2]
[387782414,1758856152754,330.23719472,0.00020972,2]
[387782415,1758856152857,330.23719472,0.00022044,2]
[387782418,1758856221715,809.11546876,0.00025205,2]
[387782419,1758856221737,2190.88453124,0.00025205,2]
[387782498,1758856239925,-330.23719472,0.00025259,3]
[387782499,1758856239939,-4673.45084512,0.00025576,7]
[387782500,1758856239977,-1534.7140493,0.00025576,7]
[387782501,1758856239991,-1641.45344749,0.00025576,7]
[387782502,1758856240004,-300.0,0.00026188,2]
[387782503,1758856240016,-411.35409152,0.00026189,2]
[387782504,1758856240029,-411.35409152,0.00026189,2]
[387782505,1758856240041,-411.35409152,0.00026189,2]
[387782506,1758856240053,-411.35409152,0.00026189,2]
[387782507,1758856240065,-330.23719472,0.00026331,5]
[387782508,1758856240077,-411.35409152,0.00026468,2]
[387782509,1758856240089,-411.35409152,0.00026747,2]
[387782510,1758856240101,-411.35409152,0.00026747,2]
[387782511,1758856240113,-411.35409152,0.00026747,2]
[387782512,1758856240125,-411.35409152,0.00027026,7]
[387782513,1758856240136,-411.35409152,0.00027026,7]
[387782514,1758856240148,-411.35409152,0.00027026,7]
[387782515,1758856240160,-411.35409152,0.00027026,7]
[387782516,1758856240172,-985.922,0.000273,2]
[387782517,1758856240184,-2178.321,0.000273,2]
[387782518,1758856240196,-639.682,0.000273,2]
[387782519,1758856240209,-411.35409152,0.00027305,7]
[387782520,1758856240220,-411.35409152,0.00027305,7]
[387782521,1758856240234,-330.23719472,0.00027403,7]
[387782522,1758856240246,-420.0,0.00028336,2]
[387782523,1758856240258,-330.23719472,0.00028475,9]
[387782524,1758856240270,-151.0,0.00029468,7]
[387782525,1758856240284,-330.23719472,0.00029547,12]
[387782526,1758856240297,-233.71402077,0.00029849,2]
[387782527,1758856240311,-199.0,0.00029991,14]
[387782528,1758856240324,-6165.19301013,0.00029997,2]
[387782529,1758856240336,-500.0,0.00029999,2]
[387782530,1758856240349,-436.6007565,0.00029999,2]
[387782531,1758856240362,-12073.43656889,0.0003,14]
[387782532,1758856240374,-2606.18084767,0.0003,120]
[387782533,1758856240385,-157.725718,0.0003,7]
[387782534,1758856240394,-154.582903,0.0003,7]
[387782535,1758856240403,-151.0,0.0003,7]
[387782536,1758856240539,-229.395986,0.0003,7]
[387782537,1758856240549,-240.540003,0.0003,7]
[387782538,1758856240559,-210.0,0.00030082,60]
[387782539,1758856240570,-277.45,0.00030087,10]
[387782540,1758856240579,-231.2,0.00030087,10]
[387782541,1758856240589,-192.67,0.00030087,10]
[387782542,1758856240599,-152.457783,0.00030092,7]
[387782543,1758856240609,-151.697726,0.00030092,7]
[387782544,1758856240619,-151.807257,0.00030092,7]
[387782545,1758856240629,-151.0,0.00030092,7]
[387782546,1758856240638,-164.28246035,0.00030093,20]
[387782547,1758856240648,-164.33287376,0.00030093,20]
[387782548,1758856240658,-151.0,0.00030093,20]
[387782549,1758856240668,-151.0,0.00030093,2]
[387782550,1758856240678,-151.0,0.00030093,7]
[387782551,1758856240688,-151.0,0.00030093,20]
[387782552,1758856240698,-157.25641597,0.00030093,20]
[387782553,1758856240707,-151.0,0.00030093,20]
[387782554,1758856240717,-151.0,0.00030093,2]
[387782555,1758856240726,-152.69245644,0.00030093,2]
[387782556,1758856240736,-152.34984003,0.00030093,2]
[387782557,1758856240746,-151.0,0.00030093,2]
[387782558,1758856240756,-151.90577313,0.00030093,2]
[387782559,1758856240765,-151.0,0.00030093,2]
[387782560,1758856240775,-1684.8,0.00030093,60]
[387782561,1758856240784,-161.33478362,0.00030094,5]
[387782562,1758856240793,-233.71402077,0.00030094,30]
[387782563,1758856240803,-160.87822064,0.00030096,2]
[387782564,1758856240812,-68174.99588012,0.00030097,20]
[387782565,1758856240824,-374.32049367,0.00030097,20]
[387782566,1758856240835,-110713.50063396,0.00030097,20]
[387782603,1758856243062,-152.659975,0.0003,7]
[387782605,1758856243072,-495.020025,0.00030097,20]
[387782607,1758856243083,-53086.39792458,0.00030097,20]
[387782609,1758856243094,-1531.169511,0.00030097,20]
[387782618,1758856243166,-1508.28058911,0.00030097,20]
[387782629,1758856245937,-461.49573759,0.00030097,20]
[387782630,1758856245950,-2281.28905335,0.00030097,20]
[387782631,1758856246000,-23371.46306212,0.00030097,20]
[387782632,1758856246011,-5126.71557159,0.00030097,20]
[387782633,1758856246023,-1072.81722564,0.00030097,20]
[387782634,1758856368802,2000.0,0.00024,10]
[387782666,1758856786260,174.0,0.00028767,120]
[387782860,1758857315311,7581.21466276,0.00015,2]
[387782882,1758857432074,-242.71322907,0.000199,2]
[387782883,1758857432084,-242.71322893,0.00020972,2]
[387782885,1758857432093,-242.71322893,0.00022044,2]
[387782888,1758857432103,-242.71322893,0.00023116,2]
[387782890,1758857432112,-233.71402077,0.00024103,2]
[387782892,1758857432122,-242.71322893,0.00024187,2]
[387782894,1758857432131,-242.71322893,0.00025259,3]
[387782896,1758857432140,-242.71322893,0.00026331,5]
[387782898,1758857432149,-242.71322893,0.00027403,7]
[387782900,1758857432159,-242.71322893,0.00028475,9]
[387782903,1758857432168,-202.96098467,0.00028709,2]
[387782906,1758857432178,-242.71322893,0.00029547,12]
[387782909,1758857432187,-151.0,0.00029979,30]
[387782911,1758857432196,-300.0,0.00029998,2]
[387782913,1758857432206,-172.52844095,0.00029999,2]
[387782916,1758857432215,-848.83769448,0.00029999,2]
[387782919,1758857432224,-5548.67370909,0.00029999,2]
[387782922,1758857432233,-356.74210894,0.00029999,2]
[387782923,1758857432243,-205.091392,0.0003,2]
[387782926,1758857432252,-500.0,0.0003006,7]
[387782929,1758857432262,-334.24756958,0.00030073,5]
[387782932,1758857432271,-250.8,0.00030089,3]
[387782935,1758857432281,-160.56,0.00030089,10]
[387782938,1758857432290,-802.82,0.00030089,10]
[387782941,1758857432300,-151.861754,0.00030096,7]
[387782945,1758857432310,-199.0,0.00030096,14]
[387782947,1758857432319,-514.502224,0.00030097,7]
[387782949,1758857432328,-160.916,0.00030097,25]
[387782951,1758857432337,-500.0,0.00030098,2]
[387782953,1758857432347,-169.55563227,0.00030098,2]
[387782955,1758857432356,-553.61634867,0.00030098,2]
[387782957,1758857432365,-160.87822063,0.00030099,2]
[387782959,1758857432374,-39692.40549666,0.00030099,20]
[387782961,1758857432501,-242.23,0.00030089,2]
[387782962,1758857432510,-213.15619639,0.00030099,20]
[387782963,1758857432529,-841.6034007,0.00030099,20]
[387782992,1758857438066,-1574.55951245,0.00030099,20]
[387782993,1758857438100,-88342.60704383,0.00030099,20]
[387783033,1758857446215,-3627.22966401,0.00030099,20]
[387783034,1758857446513,-2513.5691705,0.00030099,20]
[387783035,1758857446524,-1604.06788526,0.00030099,20]
[387783057,1758858029043,-280.2506448,0.000199,2]
[387783058,1758858037784,-280.25064476,0.00023116,2]
[387783059,1758858049024,-280.25064476,0.00024187,2]
[387783066,1758858141248,852.09345275,0.00023158,2]
[387783076,1758858162380,214.85882792,0.000199,2]
[387783077,1758858162447,214.85882764,0.00024187,2]
[387783078,1758858162733,214.85882764,0.00020972,2]
[387783079,1758858162798,214.85882764,0.00023116,2]
[387783080,1758858163047,214.85882764,0.00022044,2]
[387783092,1758858333341,343.77412422,0.000199,2]
[387783093,1758858333446,343.77412422,0.0002212,2]
[387783094,1758858333852,343.77412422,0.00024341,2]
[387783172,1758858632377,-233.71402077,0.00027204,2]
[387783174,1758858632387,-410.0,0.00027432,2]
[387783176,1758858632396,-164.423667,0.00029495,20]
[387783178,1758858632406,-800.0,0.00029848,2]
[387783180,1758858632415,-480.0,0.00029863,30]
[387783182,1758858632424,-1000.0,0.000299,30]
[387783184,1758858632434,-861.98364416,0.00029999,2]
[387783186,1758858632444,-400.0,0.00030005,2]
[387783187,1758858632453,-1489.22194666,0.00030006,2]
[387783188,1758858632464,-155.44257954,0.00030006,2]
[387783189,1758858632473,-4993.80633819,0.00030006,2]
[387783190,1758858632483,-950.47921219,0.00030009,2]
[387783191,1758858632492,-1001.0,0.0003008,40]
[387783192,1758858632503,-168.97866829,0.00030089,2]
[387783193,1758858632513,-500.0,0.00030089,2]
[387783194,1758858632523,-500.0,0.00030089,2]
[387783195,1758858632532,-200.23604664,0.00030089,2]
[387783196,1758858632542,-160.916,0.00030089,25]
[387783198,1758858632551,-500.0,0.0003009,2]
[387783201,1758858632561,-500.0,0.0003009,2]
[387783204,1758858632570,-500.0,0.0003009,2]
[387783207,1758858632580,-500.0,0.0003009,2]
[387783209,1758858632589,-500.0,0.0003009,2]
[387783211,1758858632599,-500.0,0.0003009,2]
[387783212,1758858632608,-500.0,0.0003009,2]
[387783214,1758858632617,-500.0,0.0003009,2]
[387783216,1758858632627,-500.0,0.0003009,2]
[387783219,1758858632637,-500.0,0.0003009,2]
[387783221,1758858632647,-500.0,0.0003009,2]
[387783224,1758858632656,-500.0,0.0003009,2]
[387783227,1758858632666,-500.0,0.0003009,2]
[387783229,1758858632675,-500.0,0.0003009,2]
[387783232,1758858632685,-500.0,0.0003009,2]
[387783235,1758858632695,-500.0,0.0003009,2]
[387783237,1758858632705,-500.0,0.0003009,2]
[387783238,1758858632714,-500.0,0.0003009,2]
[387783239,1758858632724,-500.0,0.0003009,2]